Cogmind - Beta 17 @@@ ROGUE MODE // 2026.07.28 @ 22:54:16 Player: Cinder Result: Destroyed by B-99 Colossus with Linear Accelerator Performance ------------- Evolutions (9) 4500 Regions Visited (25) 5000 Robots Destroyed (420) 2100 Value Destroyed (19296) 19296 Prototype IDs (60) 1200 Alien Tech Used (2) 400 Bonus (10341) 10341 TOTAL SCORE: 42837 Bonus ------- Triggered High Security 500 High Alert Combat Kills 4855 Follower Combat Kills 203 Aligned with FarCom 300 Met Data Miner 300 Met Zhirov 300 Met Warlord at Base 500 MAIN.C Attacked Warlord 500 Warlord Defense Kills 1392 Met Warlord at Research 2000 Friendly Fire -509 Cogmind --------- Core Integrity 0/1600 Matter 268/300 Energy 100/100 System Corruption 7% Temperature Cool (0) Movement Core (50) Location -1/Access Parts ------- > --- POWER (2) -------- (None) > --- PROPULSION (6) --- (None) > --- UTILITY (13) ----- Advanced Targeting Computer Advanced Targeting Computer Advanced Targeting Computer > --- WEAPON (4) ------- (None) > --- INVENTORY (5) ---- Huge Storage Unit Improved Matter Compressor (300) Peak State ------------ > --- POWER ------------ Reinforced Deuterium Engine Quantum Reactor > --- PROPULSION ------- Biometal Heavy Treads Biometal Heavy Treads Advanced Heavy Siege Treads > --- UTILITY ---------- Huge Storage Unit Experimental Optical Array Advanced Targeting Computer Advanced Targeting Computer Experimental Core Analyzer Experimental Core Analyzer Improved Armor Integrity Analyzer Improved Kinecellerator Advanced Phase Shifter Heavy Armor Plating Centrium Light Armor Plating High-powered Tractor Beam > --- WEAPON ----------- Hardcell Cannon Enhanced Hardcell Cannon Enhanced Hardcell Cannon Compact Linear Accelerator > --- INVENTORY -------- Reinforced Fission Core Wheel Wheel Wheel Compact Wheel Armored Huge Wheel Improved Cooling System Huge Storage Unit Improved Matter Compressor Advanced Recoil Stabilizer Heavy Reflective Plating Advanced Shield Generator Transdimensional Reconstructor Heavy Mass Driver Heavy Mass Driver Heavy Gauss Cannon Fusion Bomb Launcher [Rating: 187] Favorites ----------- Power Reinforced Deuterium Engine Engine Reinforced Deuterium Engine Power Core Enhanced Nuclear Core Reactor Quantum Reactor Propulsion Wheel Treads Armored Medium Treads Wheel Wheel Utility Advanced Targeting Computer Device Improved Kinecellerator Storage Huge Storage Unit Processor Advanced Targeting Computer Protection Layered Heavy Armor Plating Weapon XL Autogun Subcomponent Energy Gun Particle Gun Energy Cannon Particle Cannon Ballistic Gun XL Autogun Subcomponent Ballistic Cannon Compact Linear Accelerator Launcher Fusion Bomb Launcher Special Weapon Enhanced Flamer Build | -11 -10 -9 -9 -9 -8 -8 -7 -7 -7 -7 -6 -6 -5 -5 -5 -5 -4 -4 -4 -4 -4 -3 -3 -2 -1 ------- Run | Yrd Mat Mat Min Exi Min Mat Fac Low Low Dat Pro Fac Fac Upp Upp Zhi Pro Fac Upp Upp War Pro Res Res Acc Slots Evolved 18 | . . 2 . . . 2 2 . . . . 2 2 . . . . 2 . . . . 2 2 2 Power 1 | . . . . . . . . . . . . . . . . . . . . . . . . . 1 Propulsion 4 | . . 1 . . . . . . . . . 1 . . . . . . . . . . 1 . 1 Utility 11 | . . 1 . . . 2 2 . . . . 1 1 . . . . 1 . . . . 1 2 . Weapon 2 | . . . . . . . . . . . . . 1 . . . . 1 . . . . . . . Parts Attached 232 | 6 5 21 3 . . 20 28 3 . . 3 14 36 . 1 2 . 14 . 2 12 2 20 24 16 Power 18 | 1 . 4 . . . 4 2 . . . . 1 4 . . . . . . . . 1 . . 1 Engine 13 | 1 . 3 . . . 4 2 . . . . 1 2 . . . . . . . . . . . . Core 3 | . . 1 . . . . . . . . . . 2 . . . . . . . . . . . . Reactor 2 | . . . . . . . . . . . . . . . . . . . . . . 1 . . 1 Propulsion 75 | 2 1 8 1 . . 5 6 1 . . . 5 13 . 1 . . 7 . 1 2 1 10 7 4 Treads 9 | . . . . . . . . . . . . 1 1 . 1 . . . . . 1 . . 4 1 Leg . | . . . . . . . . . . . . . . . . . . . . . . . . . . Wheel 66 | 2 1 8 1 . . 5 6 1 . . . 4 12 . . . . 7 . 1 1 1 10 3 3 Hover . | . . . . . . . . . . . . . . . . . . . . . . . . . . Flight . | . . . . . . . . . . . . . . . . . . . . . . . . . . Utility 82 | 1 4 4 . . . 4 10 . . . 3 6 12 . . 2 . 6 . 1 4 . 6 12 7 Device 26 | . 2 3 . . . 1 3 . . . . . 5 . . 1 . 2 . . 2 . 3 2 2 Storage 7 | 1 2 . . . . . . . . . . 1 1 . . 1 . 1 . . . . . . . Processor 21 | . . 1 . . . 3 1 . . . 1 3 . . . . . 2 . 1 2 . 1 3 3 Hackware . | . . . . . . . . . . . . . . . . . . . . . . . . . . Protection 28 | . . . . . . . 6 . . . 2 2 6 . . . . 1 . . . . 2 7 2 Artifact . | . . . . . . . . . . . . . . . . . . . . . . . . . . Weapon 57 | 2 . 5 2 . . 7 10 2 . . . 2 7 . . . . 1 . . 6 . 4 5 4 Energy Gun 7 | . . 4 . . . 2 1 . . . . . . . . . . . . . . . . . . Energy Cannon 4 | . . . 1 . . 3 . . . . . . . . . . . . . . . . . . . Ballistic Gun 21 | 2 . 1 . . . 1 4 . . . . . 5 . . . . 1 . . 4 . 2 1 . Ballistic Cannon 15 | . . . . . . . 3 . . . . 2 2 . . . . . . . 1 . 2 2 3 Launcher 8 | . . . 1 . . . 2 2 . . . . . . . . . . . . . . . 2 1 Special Weapon 2 | . . . . . . 1 . . . . . . . . . . . . . . 1 . . . . Impact Weapon . | . . . . . . . . . . . . . . . . . . . . . . . . . . Slashing Weapon . | . . . . . . . . . . . . . . . . . . . . . . . . . . Piercing Weapon . | . . . . . . . . . . . . . . . . . . . . . . . . . . Special Melee Weapon . | . . . . . . . . . . . . . . . . . . . . . . . . . . Unidentified Prototypes 16 | . . 1 . . . 1 2 . . . . . 2 . . 3 . . . . 4 . 1 1 1 Parts Lost 112 | . . 12 . . . 6 6 1 . . 4 3 15 1 . . 1 3 . 2 . 1 20 10 27 Power 6 | . . 1 . . . . . . . . . 1 1 . . . . . . . . . 1 . 2 Propulsion 47 | . . 4 . . . 4 3 1 . . 2 2 7 1 . . . 2 . 1 . 1 12 . 7 Utility 34 | . . 2 . . . . 2 . . . 2 . 3 . . . . 1 . 1 . . 3 7 13 Weapon 25 | . . 5 . . . 2 1 . . . . . 4 . . . 1 . . . . . 4 3 5 Highest Loss Streak 19 | . . 5 . . . 5 4 1 . . 2 2 4 1 . . 1 1 . 2 . 1 9 5 19 To Critical Strikes 2 | . . . . . . . . . . . . . . . . . . . . . . . 1 . 1 Average Backups 19 | 1 8 16 18 18 19 19 21 21 21 22 21 21 21 19 18 18 19 22 22 20 21 21 20 20 14 Power 1 | . 1 1 1 1 1 1 2 2 2 2 2 1 1 2 2 2 2 2 2 2 2 2 1 1 . Propulsion 2 | . 2 2 3 3 3 2 1 . . . . 1 2 1 . . . 3 4 3 3 3 2 4 3 Utility 9 | . 2 7 8 8 8 8 11 12 13 13 12 11 11 12 12 12 12 11 10 9 10 10 8 7 4 Weapon 5 | . 2 5 5 6 7 7 6 6 6 7 6 6 5 4 4 4 4 4 5 5 5 5 5 6 4 Tool/Special . | . . . . . . . . . . . . . . . . . . . . . . . . . . Unused Backups 46 | . 2 1 . 2 . 4 10 . . . . 2 7 . . . . 4 1 . 1 . 1 6 5 Power 8 | . 1 . . . . 1 2 . . . . . 2 . . . . . . . . . . 1 1 Propulsion 5 | . . . . . . . . . . . . . . . . . . . . . . . . 5 . Utility 27 | . 1 . . 2 . 3 8 . . . . . 4 . . . . 4 1 . 1 . 1 . 2 Weapon 6 | . . 1 . . . . . . . . . 2 1 . . . . . . . . . . . 2 Tool/Special . | . . . . . . . . . . . . . . . . . . . . . . . . . . Average Slot Usage (%) 90 | . 97 96 100 100 100 97 96 84 84 84 82 89 96 88 93 93 93 78 78 77 78 93 93 87 81 Engine 4 | . 14 6 11 11 11 9 7 7 7 7 7 5 2 . . . . . . . . . 1 4 3 Core 1 | . . 3 . . . . . . . . . . 2 5 5 5 5 5 5 5 5 5 2 . . Treads 3 | . . . . . . . . . . . . 5 4 5 10 11 11 5 5 5 5 5 4 6 6 Wheel 17 | . 28 31 33 33 33 25 22 22 23 23 20 15 16 11 11 11 11 14 15 14 15 14 17 7 7 Device 7 | . 12 17 11 11 11 9 8 7 7 7 5 . 5 5 5 4 5 3 . 4 5 5 4 10 12 Storage 6 | . 14 11 11 11 11 9 7 7 7 7 7 6 5 5 5 5 5 5 5 5 5 5 4 4 3 Processor 25 | . . 4 11 11 11 26 22 23 23 23 23 32 29 29 29 29 29 32 36 31 31 31 32 28 26 Protection 5 | . . . . . . . 12 7 7 7 7 13 8 5 5 5 5 5 5 5 5 5 3 6 4 Energy Gun 1 | . . 13 11 11 11 9 . . . . . . . . . . . . . . . . . . . Ballistic Gun 6 | . 28 8 . . . . 2 . . . . . 5 16 17 17 16 5 5 5 5 15 11 5 . Ballistic Cannon 4 | . . . . . . . 8 6 7 7 6 6 10 . . . . . . . . 4 5 9 12 Peak Build Rating 187 | 6 9 16 16 20 20 28 46 45 48 45 48 52 80 74 79 85 80 99 99 103 109 106 113 169 187 Average Rating 73 | 5 7 12 15 18 20 26 40 44 45 45 44 48 69 73 78 79 79 97 99 101 105 103 110 142 153 On Entrance 58 | . 6 9 13 16 20 20 28 45 45 45 45 40 52 74 74 79 80 75 99 99 103 103 104 104 155 Avg Prop Armor Cover (%) 6 | . . . . . . . 3 . . . . 7 5 5 9 10 10 5 5 5 5 6 5 4 10 Naked Turns . | . . . . . . . . . . . . . . . . . . . . . . . . . . Heaviest Build 186 | 13 89 95 96 96 96 101 128 128 130 128 128 121 141 119 119 119 119 128 123 128 128 124 146 178 186 Greatest Support 230 | 20 20 36 30 30 30 36 32 36 36 36 36 42 52 20 20 20 20 42 36 42 42 42 64 150 230 Greatest Overweight (x) 11 | . 4 5 3 3 3 4 11 3 3 3 7 7 4 5 5 5 5 5 3 3 3 4 9 9 3 Average Overweight (x) 2 | . 2 2 3 3 3 2 3 3 3 3 3 3 3 5 5 5 5 2 3 3 2 2 2 1 1 Largest Inventory Capacity 25 | 8 25 25 25 25 25 25 25 25 25 25 25 25 25 25 25 25 25 25 25 25 25 25 25 25 25 Average Capacity 24 | 6 20 25 25 25 25 25 25 25 25 25 25 25 25 25 25 25 25 25 25 25 25 25 25 25 24 Most Carried 25 | 3 17 20 20 23 22 25 25 25 25 25 25 25 25 25 25 25 25 25 25 25 25 25 25 25 22 Average Carried 22 | 1 8 16 18 20 22 22 24 24 24 25 24 24 24 24 24 24 25 24 24 23 24 24 23 23 16 Final Capacity 25 | 8 25 25 25 25 25 25 25 25 25 25 25 25 25 25 25 25 25 25 25 25 25 25 25 25 5 Final Carried 25 | 3 17 18 19 22 22 25 25 25 25 25 23 25 24 25 24 25 25 25 25 25 25 25 20 21 2 Class Distribution -------------------- 37% | Scavenger-Gunner 27% | Mutant 21% | Gunner 13% | Scavenger-Mutant Dominant Class ---------------- Mutant | -10/Materials Mutant | -9/Materials Scavenger-Mutant | -9/Mines Scavenger-Mutant | -9/Exiles Scavenger-Mutant | -8/Mines Scavenger-Mutant | -8/Materials Mutant | -7/Factory Mutant | -7/Lower Caves Mutant | -7/Lower Caves Mutant | -7/Data Miner Mutant | -6/Proximity Caves Mutant | -6/Factory Gunner | -5/Factory Gunner | -5/Upper Caves Scavenger-Gunner | -5/Upper Caves Scavenger-Gunner | -5/Zhirov Scavenger-Gunner | -4/Proximity Caves Scavenger-Gunner | -4/Factory Gunner | -4/Upper Caves Gunner | -4/Upper Caves Gunner | -4/Warlord Scavenger-Gunner | -3/Proximity Caves Scavenger-Gunner | -3/Research Scavenger-Gunner | -2/Research Scavenger-Gunner | -1/Access Resources | -11 -10 -9 -9 -9 -8 -8 -7 -7 -7 -7 -6 -6 -5 -5 -5 -5 -4 -4 -4 -4 -4 -3 -3 -2 -1 ----------- Run | Yrd Mat Mat Min Exi Min Mat Fac Low Low Dat Pro Fac Fac Upp Upp Zhi Pro Fac Upp Upp War Pro Res Res Acc Matter Collected 16263 | 227 285 246 36 28 . 194 1021 212 98 . 390 781 2684 252 204 . 133 1136 302 302 430 352 2137 2612 2201 Remotely 5883 | . . . . . . . 135 . . . . . 1417 . . . 133 380 . . . . 291 1830 1697 Salvage Created 17836 | 28 383 570 25 . . 1087 1067 437 165 . 157 981 1600 290 158 . 96 1643 497 767 599 429 2876 2331 1650 Parts 892 | 1 30 39 7 . . 53 59 8 10 . 5 47 101 6 9 . 4 66 30 32 32 35 152 98 68 Haulers Intercepted 14 | . 2 2 . . . 2 3 . . . . . . . . . . 2 . . . . 1 2 . Recyclers Shooed 10 | . 2 . . . . . . . . . . 3 3 . . . . 1 . . . . 1 . . Parts Field Recycled . | . . . . . . . . . . . . . . . . . . . . . . . . . . Retrieved Matter . | . . . . . . . . . . . . . . . . . . . . . . . . . . Parts Self-Destructed 128 | . . . . . . . . 6 10 . 3 . . 3 6 . 4 . 29 31 . 36 . . . Prevented 5 | . . . . . . . . . . . . . . 1 . . . . . 3 . 1 . . . Parts Restored . | . . . . . . . . . . . . . . . . . . . . . . . . . . Kills | -11 -10 -9 -9 -9 -8 -8 -7 -7 -7 -7 -6 -6 -5 -5 -5 -5 -4 -4 -4 -4 -4 -3 -3 -2 -1 ------- Run | Yrd Mat Mat Min Exi Min Mat Fac Low Low Dat Pro Fac Fac Upp Upp Zhi Pro Fac Upp Upp War Pro Res Res Acc Combat Hostiles Destroyed 311 | . 8 14 3 . . 15 18 7 5 . 10 9 30 10 2 . 1 10 11 11 9 10 43 45 40 Guns 119 | . 8 14 1 . . 11 . . . . . . 10 3 2 . 1 10 11 11 9 6 21 1 . Cannons 118 | . . . . . . 2 17 . 1 . 1 5 18 . . . . . . . . 4 16 25 29 AOE 71 | . . . 2 . . . . 7 4 . 9 4 2 7 . . . . . . . . 6 19 11 Classes Destroyed 26 | 1 5 1 . . . 3 2 . . . . 1 2 . . . 1 . . 2 4 1 1 2 . Worker 32 | . 1 2 . . . 4 4 . . . . 3 9 . . . . 6 . . . . 3 . . Builder 16 | . 1 1 . . . . 2 . . . . 1 2 . . . . . . . . . 4 3 2 Tunneler 9 | 1 . 1 1 . . 1 1 . . . . . 1 . . . . . . . . . 2 . 1 Hauler 14 | . 2 2 . . . 2 3 . . . . . . . . . . 2 . . . . 1 2 . Recycler 20 | . . . . . . 2 3 . . . . 6 1 . . . . 4 . . . . 3 1 . Minesweeper 2 | . . . . . . . . . . . . . . . . . 1 . 1 . . . . . . Mechanic 1 | . . . . . . . . . . . . . . . . . . . . . . . 1 . . Operator 4 | . . . . . . 1 . . . . . 1 . . . . . . . . . . 1 1 . Drone 2 | . . . . . . . . . . . . . . . . . . . . . . 2 . . . Watcher 9 | . . . . . . . . . . . . 1 4 . . . . 2 . . . . . . 2 Swarmer 81 | . 3 7 3 . . . . 7 . . 4 4 7 5 . . . . 7 1 . 3 10 9 11 Saboteur 1 | . . . . . . . . . . . . . . . . . . . . . 1 . . . . Grunt 84 | . 5 4 . . . 8 10 . 4 . 4 2 3 4 . . . 4 1 3 3 . 8 9 12 Brawler 7 | . . . . . . . 1 . . . 1 . 1 . . . . . . 2 . . . . 2 Duelist 3 | . . . . . . . . . . . . . . . . . . . . 1 . . . 2 . Protector 1 | . . . . . . . . . . . . . . . . . . . . . 1 . . . . Sentry 34 | . . 3 . . . 5 2 . 1 . 1 . 5 1 . . 1 3 1 1 . 1 3 1 5 Demolisher 2 | . . . . . . . . . . . . . . . . . . . . . . . . 2 . Specialist 7 | . . . . . . . . . . . . . 2 . . . . . . . 1 . 4 . . Hunter 24 | . . . . . . 2 . . . . . . 3 . 2 . . . 2 . . . 6 5 4 Programmer 47 | . . . . . . . 5 . . . . 3 7 . . . . 3 . 3 . 4 10 6 6 Heavy 4 | . . . . . . . . . . . . . 2 . . . . . . . . . 2 . . Striker 7 | . . . . . . . . . . . . . . . . . . . . . 2 . . 5 . Executioner 7 | . . . . . . . . . . . . . . . . . . . . . 1 . . 6 . Decomposer 3 | . . . . . . . . . . . . . . 1 2 . . . . . . . . . . Packrat 3 | . . . . . . . . 3 . . . . . . . . . . . . . . . . . Samaritan 1 | . . . . . . . . . . . . . . . . . . . . 1 . . . . . Thug 1 | . . . . . . . . . . . . . . . . . . . . . . . . 1 . Dragon 1 | . . . . . . . . . . . . . . . . . . . . . . . . 1 . Best Kill Streak 14 | 1 3 5 3 . . 7 5 7 4 . 4 8 8 5 1 . 1 5 5 9 8 4 9 14 9 Combat Bots Only 14 | . 3 4 3 . . 5 5 7 4 . 4 4 6 5 1 . 1 3 5 9 8 4 6 14 9 Max Kills in Single Turn 6 | 1 1 2 2 . . 1 1 2 4 . 3 3 2 2 1 . 1 2 1 2 1 2 4 6 4 Gunslinging . | . . . . . . . . . . . . . . . . . . . . . . . . . . Exploded 5 | . . . 2 . . . . 2 4 . 3 3 2 2 . . . . . . . . 3 5 4 Melee . | . . . . . . . . . . . . . . . . . . . . . . . . . . Uniques/NPCs Destroyed . | . . . . . . . . . . . . . . . . . . . . . . . . . . Combat | -11 -10 -9 -9 -9 -8 -8 -7 -7 -7 -7 -6 -6 -5 -5 -5 -5 -4 -4 -4 -4 -4 -3 -3 -2 -1 -------- Run | Yrd Mat Mat Min Exi Min Mat Fac Low Low Dat Pro Fac Fac Upp Upp Zhi Pro Fac Upp Upp War Pro Res Res Acc Hostile Shots Fired 1770 | . 39 118 6 . . 77 181 16 27 . 56 69 150 37 12 . 3 36 22 19 7 24 337 181 353 Missed 532 | . 9 19 2 . . 19 59 9 8 . 21 29 42 5 6 . 1 10 9 6 3 4 110 40 121 Hits 1238 | . 30 99 4 . . 58 122 7 19 . 35 40 108 32 6 . 2 26 13 13 4 20 227 141 232 Melee 7 | . . . . . . . . . . . 1 . . . . . . . . . . . . 4 2 Projectile 1231 | . 30 99 4 . . 58 122 7 19 . 34 40 108 32 6 . 2 26 13 13 4 20 227 137 230 AOE 3 | . . . . . . . . . . . . . . . . . . . . . . . . 3 . Critical Strikes 42 | . . 3 1 . . 1 3 . . . 1 2 4 1 1 . . 1 . 1 . 1 5 8 9 Part Disruptions 1 | . . . . . . . . . . . . . 1 . . . . . . . . . . . . Damage Taken 23557 | . 349 1281 84 . . 809 1327 147 204 . 670 710 2689 669 108 . 52 574 215 282 113 478 4017 4011 4768 Core 3134 | . 101 323 . . . 250 127 17 10 . 50 97 104 96 . . . 25 25 . 20 24 229 155 1481 Absorbed by Shields 465 | . . . . . . . . . . . . . . . . . . . . . . . . 234 231 Reduced by Siege Mode 153 | . . . . . . . . . . . . . . . . . . . . . . . . 56 97 Ignored by Resistances 121 | . . . . . . . 89 . . . . 9 . . . . . . . . . . . 15 8 Regen/Repaired (Parts) 408 | . . . . . . . . . . . . . 113 . . . . . . . 11 . . 284 . Core Remaining (%) 73 | 100 59 . . . 19 54 . . . . 70 88 . . . . 80 . . . . 91 82 89 . Volleys Fired 832 | 6 42 80 4 . . 77 81 13 4 . 13 39 95 9 8 . 7 44 19 18 21 18 105 68 61 Largest 4 | 2 2 2 2 . . 2 2 2 2 . 2 2 3 3 3 . 3 1 1 1 4 4 4 4 4 Hottest 229 | 40 40 130 133 . . 135 140 72 84 . 84 74 131 111 96 . 96 60 60 60 118 118 184 219 229 Shots Fired 1898 | 12 84 158 8 . . 154 135 17 5 . 20 40 258 28 24 . 20 44 19 17 24 70 352 230 179 Gun 1005 | 12 84 158 4 . . 119 25 . . . . . 87 23 24 . 20 44 19 17 23 54 215 77 . Cannon 806 | . . . 2 . . 22 110 9 3 . 6 37 168 . . . . . . . 1 16 130 133 169 Launcher 74 | . . . 2 . . . . 8 2 . 14 3 3 5 . . . . . . . . 7 20 10 Special 13 | . . . . . . 13 . . . . . . . . . . . . . . . . . . . Kinetic 1568 | 12 84 57 . . . 11 129 9 3 . 6 37 255 23 24 . 20 44 19 17 24 70 345 210 169 Thermal 256 | . . 101 6 . . 143 6 . . . . . . . . . . . . . . . . . . Explosive 74 | . . . 2 . . . . 8 2 . 14 3 3 5 . . . . . . . . 7 20 10 Electromagnetic . | . . . . . . . . . . . . . . . . . . . . . . . . . . Robot Hit Streak 45 | 4 8 14 4 . . 28 33 13 17 . 11 14 20 18 9 . 17 45 13 31 19 8 19 29 20 Robot Miss Streak 8 | 1 6 6 1 . . 6 3 1 1 . 2 2 8 1 1 . 1 3 2 2 3 5 4 2 3 Penetration Max 1 | . . . . . . . . . . . . . 1 . . . . . . . . . 1 1 1 Secondary Targets 6 | . . 1 . . . . . . . . . . . 2 . . . . . . . 1 2 . . Max Gunslinging Chain 1 | . . 1 . . . . . . . . . . . 1 . . . . . . . 1 1 . . Shots Hit Robots 1244 | 8 46 98 5 . . 116 91 14 4 . 13 31 172 16 16 . 18 41 19 17 22 37 218 144 98 Core Hits 867 | 2 22 35 3 . . 44 47 12 9 . 21 25 116 34 8 . 6 50 24 24 35 20 132 115 83 Critical Kills 18 | . . . . . . . . . . . . . 10 . . . . . . . . . 8 . . Critical Parts Destroyed 13 | . . . . . . . . . . . . . 2 . 1 . 1 . . . . . 8 1 . Critical Strikes 81 | . . 3 . . . 4 7 1 1 . . 3 19 . 1 . 1 . . . . . 20 12 9 Burn 7 | . . 3 . . . 4 . . . . . . . . . . . . . . . . . . . Destroy 33 | . . . . . . . . . . . . . 14 . 1 . 1 . . . . . 16 1 . Blast 41 | . . . . . . . 7 1 1 . . 3 5 . . . . . . . . . 4 11 9 Melee Attacks . | . . . . . . . . . . . . . . . . . . . . . . . . . . Impact . | . . . . . . . . . . . . . . . . . . . . . . . . . . Slashing . | . . . . . . . . . . . . . . . . . . . . . . . . . . Piercing . | . . . . . . . . . . . . . . . . . . . . . . . . . . Sneak Attacks . | . . . . . . . . . . . . . . . . . . . . . . . . . . Combat Hostiles . | . . . . . . . . . . . . . . . . . . . . . . . . . . Follow-up Attacks . | . . . . . . . . . . . . . . . . . . . . . . . . . . Damage Inflicted 52691 | 87 523 1235 255 . . 2135 2806 1148 484 . 1503 1882 4668 957 284 . 400 3194 854 1428 1955 1166 7656 10168 7903 Guns 20432 | 87 523 1219 42 . . 1896 310 . . . . . 1740 246 284 . 400 3194 854 1428 1955 712 3865 1677 . Cannons 19961 | . . . 21 . . 106 2496 477 127 . 260 1680 2562 . . . . . . . . 454 2552 4028 5198 Explosions 12149 | . . . 192 . . . . 671 357 . 1243 202 366 711 . . . . . . . . 1239 4463 2705 Melee . | . . . . . . . . . . . . . . . . . . . . . . . . . . Ramming 16 | . . 16 . . . . . . . . . . . . . . . . . . . . . . . Kinetic 37438 | 87 523 304 . . . 137 2694 477 127 . 260 1680 4302 246 284 . 400 3194 854 1428 1955 1166 6417 5705 5198 Thermal 3267 | . . 915 146 . . 1998 112 . . . . . 96 . . . . . . . . . . . . Explosive 11970 | . . . 109 . . . . 671 357 . 1243 202 270 711 . . . . . . . . 1239 4463 2705 Electromagnetic . | . . . . . . . . . . . . . . . . . . . . . . . . . . Impact . | . . . . . . . . . . . . . . . . . . . . . . . . . . Slashing . | . . . . . . . . . . . . . . . . . . . . . . . . . . Piercing . | . . . . . . . . . . . . . . . . . . . . . . . . . . Highest Corruption 8 | . . . . . . . . . . . 4 1 8 2 2 2 2 4 4 5 5 3 5 6 7 Average Corruption 3 | . . . . . . . . . . . 4 1 4 2 2 2 2 2 4 4 5 2 3 5 4 Corruption Purged 8 | . . . . . . . . . . . . . 7 . . . . 1 . . . . . . . Corruption Blocked . | . . . . . . . . . . . . . . . . . . . . . . . . . . Effects 165 | . . . . . . . . . . . 3 3 38 11 6 2 5 5 13 14 1 2 25 14 23 Message Errors 42 | . . . . . . . . . . . . . 8 4 1 1 1 2 3 2 1 1 7 5 6 Matter Fused 39 | . . . . . . . . . . . 1 1 14 3 1 . 1 1 2 4 . . 3 3 5 Heat Flow Errors 18 | . . . . . . . . . . . . . 4 2 1 . 1 . 2 1 . . 2 2 3 Energy Discharges 16 | . . . . . . . . . . . . . 3 . 1 . 1 1 2 2 . . 4 1 1 Parts Rejected 5 | . . . . . . . . . . . 1 . 1 . . . . . . . . . 2 . 1 Parts Fused 3 | . . . . . . . . . . . . 1 . . . . . . 1 . . . . 1 . Data Loss (minor) 20 | . . . . . . . . . . . 1 . 2 . 2 1 . 1 2 3 . . 4 . 4 Data Loss (major) 6 | . . . . . . . . . . . . . . 1 . . 1 . 1 1 . . 1 1 . Misfires 3 | . . . . . . . . . . . . . 1 1 . . . . . . . . . . 1 Alerts 5 | . . . . . . . . . . . . 1 2 . . . . . . . . 1 . 1 . Weapon Failures 8 | . . . . . . . . . . . . . 3 . . . . . . 1 . . 2 . 2 Overload Shots . | . . . . . . . . . . . . . . . . . . . . . . . . . . Overflow Damage 1577 | . . 1 47 . . 3 165 139 6 . 36 187 37 9 . . . . . . . 11 127 447 362 Projectiles 1130 | . . . . . . 3 165 85 . . . 187 26 . . . . . . . . 11 112 213 328 Explosions 446 | . . . 47 . . . . 54 6 . 36 . 11 9 . . . . . . . . 15 234 34 Melee 1 | . . 1 . . . . . . . . . . . . . . . . . . . . . . . Knockbacks 118 | . . . . . . . 21 2 . . . 10 24 . . . . . . . . 3 20 17 21 Impact . | . . . . . . . . . . . . . . . . . . . . . . . . . . Kinetic 110 | . . . . . . . 17 2 . . . 9 23 . . . . . . . . 3 19 16 21 Secondary 8 | . . . . . . . 4 . . . . 1 1 . . . . . . . . . 1 1 . Self-Inflicted Damage 892 | . . 8 49 . . . . 42 . . 233 19 47 62 . . . . . . . . 126 142 164 Shots 33 | . . . 2 . . . . 2 . . 11 1 2 3 . . . . . . . . 5 5 2 Rammed 1 | . . 1 . . . . . . . . . . . . . . . . . . . . . . . Targets Rammed 1 | . . 1 . . . . . . . . . . . . . . . . . . . . . . . Kicked . | . . . . . . . . . . . . . . . . . . . . . . . . . . Crushed . | . . . . . . . . . . . . . . . . . . . . . . . . . . Highest Temperature 419 | . 18 396 72 . . 182 419 88 82 . 155 36 304 120 208 . 100 93 198 183 204 112 260 204 352 Average Temperature 67 | . 8 94 30 . . 38 83 33 37 . 66 8 72 35 37 . 53 29 55 63 77 46 65 43 142 Received Heat Transfer 2956 | . 165 456 . . . 423 570 . 84 . 102 87 144 108 . . . 105 18 76 27 18 261 144 168 Effects 8 | . . . . . . . 2 . . . . . 4 . . . . . . . . . . . 2 Shutdowns 1 | . . . . . . . . . . . . . . . . . . . . . . . . . 1 Energy Bleed 2 | . . . . . . . . . . . . . 1 . . . . . . . . . . . 1 Interference 3 | . . . . . . . . . . . . . 3 . . . . . . . . . . . . Short Circuit 1 | . . . . . . . 1 . . . . . . . . . . . . . . . . . . Damage (minor) 1 | . . . . . . . 1 . . . . . . . . . . . . . . . . . . Siege Activations 8 | . . . . . . . . . . . . . . . . . . . . . . . . 3 5 Total Turns 174 | . . . . . . . . . . . . . . . . . . . . . . . . 73 101 Longest Duration 41 | . . . . . . . . . . . . . . . . . . . . . . . . 41 35 Martial Activations . | . . . . . . . . . . . . . . . . . . . . . . . . . . Shielding Activations . | . . . . . . . . . . . . . . . . . . . . . . . . . . Robots Disrupted . | . . . . . . . . . . . . . . . . . . . . . . . . . . Combat Hostiles . | . . . . . . . . . . . . . . . . . . . . . . . . . . Robots Corrupted 1 | . . . . . . . 1 . . . . . . . . . . . . . . . . . . Combat Hostiles 1 | . . . . . . . 1 . . . . . . . . . . . . . . . . . . Parts Fried 1 | . . . . . . . 1 . . . . . . . . . . . . . . . . . . Impact Corruptions 2 | . . 1 . . . . 1 . . . . . . . . . . . . . . . . . . Robots Melted 2 | . . . . . . 2 . . . . . . . . . . . . . . . . . . . Combat Hostiles 2 | . . . . . . 2 . . . . . . . . . . . . . . . . . . . Parts Melted 4 | . . . . . . 4 . . . . . . . . . . . . . . . . . . . Heat Transferred 8006 | . . 2553 248 . . 4931 224 . . . . . 50 . . . . . . . . . . . . Parts Sabotaged . | . . . . . . . . . . . . . . . . . . . . . . . . . . Parts Stolen . | . . . . . . . . . . . . . . . . . . . . . . . . . . Parts Stripped . | . . . . . . . . . . . . . . . . . . . . . . . . . . Power Chain Reactions . | . . . . . . . . . . . . . . . . . . . . . . . . . . Alert | -11 -10 -9 -9 -9 -8 -8 -7 -7 -7 -7 -6 -6 -5 -5 -5 -5 -4 -4 -4 -4 -4 -3 -3 -2 -1 ------- Run | Yrd Mat Mat Min Exi Min Mat Fac Low Low Dat Pro Fac Fac Upp Upp Zhi Pro Fac Upp Upp War Pro Res Res Acc Maximum Alert Level 5 | . . . . . . 1 . . . . . . 2 . . . . . . . . . 3 4 5 Low Security (%) 60 | 100 100 100 100 . 100 99 100 . . . . 100 33 . . . . 100 . . . . 22 . . Level 1 11 | . . . . . . . . . . . . . 33 . . . . . . . . . 52 . . Level 2 9 | . . . . . . . . . . . . . 32 . . . . . . . . . 19 17 . Level 3 6 | . . . . . . . . . . . . . . . . . . . . . . . 5 23 34 Level 4 10 | . . . . . . . . . . . . . . . . . . . . . . . . 58 38 Level 5 . | . . . . . . . . . . . . . . . . . . . . . . . . . . High Security 2 | . . . . . . . . . . . . . . . . . . . . . . . . . 26 Max Security . | . . . . . . . . . . . . . . . . . . . . . . . . . . Peak Influence 2092 | 5 85 197 157 . . 202 173 . . . . 154 535 . . . . 148 . . . . 899 1585 2092 Initial 948 | . 3 . 58 . . . 51 . . . . 32 53 . . . . . . . . . 320 503 948 Average 336 | . 12 56 108 . . 95 60 . . . . 69 289 . . . . 31 . . . . 319 1019 1303 Influence Increases 11050 | 5 258 510 104 . . 532 704 170 110 . 220 437 1173 210 60 . 25 442 245 274 218 200 1701 1741 1711 Destroy 0b10 Robot/C 6260 | . 160 280 60 . . 300 420 140 100 . 200 180 600 200 40 . 20 200 220 240 180 160 860 900 800 Destroy 0b10 Robot/NC 565 | 5 20 30 5 . . 50 70 10 . . . 60 85 . . . 5 70 5 . 5 10 75 35 25 Destroy Leader 1268 | . 44 74 10 . . 94 108 20 10 . 20 42 168 10 20 . . 68 20 20 . 30 182 164 164 Allied During Kill 67 | . . . . . . . 20 . . . . . . . . . . . . 14 33 . . . . Successful Hack 127 | . 19 5 . . . 7 58 . . . . 18 2 . . . . . . . . . . 18 . Disable Machine 345 | . . . 15 . . 30 . . . . . 45 75 . . . . 30 . . . . 30 30 90 Anti-Garrison Action 350 | . . . . . . . . . . . . . . . . . . . . . . . . 150 200 Destroy Structure 1258 | . . 1 14 . . 6 13 . . . . 32 198 . . . . 44 . . . . 224 369 357 Advance Influence 300 | . . . . . . . . . . . . . . . . . . . . . . . 300 . . Partial Spotted 15 | . . . . . . . 15 . . . . . . . . . . . . . . . . . . Lose Combat Pursuer 495 | . 15 120 . . . 45 . . . . . 60 45 . . . . 30 . . . . 30 75 75 Influence Decreases 9003 | . 263 359 193 62 . 418 649 263 165 21 168 380 755 460 223 114 23 302 307 282 144 316 836 1054 1246 Entered New Map 2083 | . 2 . 93 62 . . 63 63 15 21 . 20 56 196 53 114 . 2 53 16 72 146 10 392 634 Time Decay 5662 | . 192 289 100 . . 358 503 190 150 . 138 330 559 254 170 . 23 274 254 246 32 170 526 562 342 Search Patrol Dispatched 100 | . . . . . . . . . . . . . . . . . . . . . . . 100 . . Lost Part 1026 | . . 70 . . . 60 60 10 . . 30 30 140 10 . . . 26 . 20 . . 200 100 270 Lost Ally 63 | . . . . . . . 23 . . . . . . . . . . . . . 40 . . . . Purge Threat 69 | . 69 . . . . . . . . . . . . . . . . . . . . . . . . Squads Dispatched 59 | . 1 . . . . 4 8 . . . . 1 10 . . . . 3 . 1 . . 11 1 19 Investigation 2 | . . . . . . . 1 . . . . . . . . . . . . . . . . . 1 Extermination 16 | . . . . . . . 4 . . . . 1 4 . . . . 2 . . . . 4 . 1 Reinforcement 22 | . 1 . . . . 4 3 . . . . . 5 . . . . 1 . . . . 6 1 1 Assault 13 | . . . . . . . . . . . . . 1 . . . . . . 1 . . 1 . 10 Garrison 6 | . . . . . . . . . . . . . . . . . . . . . . . . . 6 Intercept . | . . . . . . . . . . . . . . . . . . . . . . . . . . Searches Triggered 1 | . . . . . . . . . . . . . . . . . . . . . . . 1 . . Data Miner Redirects 2 | . . . . . . . . . . . . . . . . . . . . . . . 1 . 1 Construction Impeded 4 | . . . . . . . 2 . . . . . 1 . . . . . . . . . 1 . . Haulers Reinforced 1 | . . . . . . . 1 . . . . . . . . . . . . . . . . . . Active Scanning Responses . | . . . . . . . . . . . . . . . . . . . . . . . . . . Cargo Convoy Interrupts 1 | . . . . . . . . . . . . . 1 . . . . . . . . . . . . Stealth | -11 -10 -9 -9 -9 -8 -8 -7 -7 -7 -7 -6 -6 -5 -5 -5 -5 -4 -4 -4 -4 -4 -3 -3 -2 -1 --------- Run | Yrd Mat Mat Min Exi Min Mat Fac Low Low Dat Pro Fac Fac Upp Upp Zhi Pro Fac Upp Upp War Pro Res Res Acc Distress Signals 36 | . 2 1 . . . 5 2 . . . . 1 2 . . . . 2 . . . . 4 13 4 Communications Jammed . | . . . . . . . . . . . . . . . . . . . . . . . . . . Distress Signals . | . . . . . . . . . . . . . . . . . . . . . . . . . . Times Spotted 480 | . 15 34 3 . . 32 25 7 9 . 11 22 41 10 2 . 1 19 11 12 26 9 56 70 65 Peak Tracking Total 14 | . 5 7 3 . . 9 6 4 4 . 4 5 5 5 1 . 1 4 5 9 11 3 6 14 12 Tactical Retreats 29 | . 1 7 . . . 3 . . . . . 2 3 . . . . 2 . . . . 2 5 4 Traps | -11 -10 -9 -9 -9 -8 -8 -7 -7 -7 -7 -6 -6 -5 -5 -5 -5 -4 -4 -4 -4 -4 -3 -3 -2 -1 ------- Run | Yrd Mat Mat Min Exi Min Mat Fac Low Low Dat Pro Fac Fac Upp Upp Zhi Pro Fac Upp Upp War Pro Res Res Acc Traps Triggered 14 | . . 1 . . . . 2 . . . . 2 5 . . . . 3 . . . . . . 1 Indirectly . | . . . . . . . . . . . . . . . . . . . . . . . . . . Trap Hack Attempts . | . . . . . . . . . . . . . . . . . . . . . . . . . . Triggered . | . . . . . . . . . . . . . . . . . . . . . . . . . . Disarmed . | . . . . . . . . . . . . . . . . . . . . . . . . . . Reprogrammed . | . . . . . . . . . . . . . . . . . . . . . . . . . . Reused . | . . . . . . . . . . . . . . . . . . . . . . . . . . Traps Extracted . | . . . . . . . . . . . . . . . . . . . . . . . . . . Installed 21 | . . . . . . . . . . . . . . . . . 10 1 10 . . . . . . Triggered . | . . . . . . . . . . . . . . . . . . . . . . . . . . Most Traps Carried 1 | . . . . . . . . . . . . . . 1 1 1 1 1 . . . . . . . Machines | -11 -10 -9 -9 -9 -8 -8 -7 -7 -7 -7 -6 -6 -5 -5 -5 -5 -4 -4 -4 -4 -4 -3 -3 -2 -1 ---------- Run | Yrd Mat Mat Min Exi Min Mat Fac Low Low Dat Pro Fac Fac Upp Upp Zhi Pro Fac Upp Upp War Pro Res Res Acc Machines Disabled 25 | . . . 1 . . 2 . . . . . 3 5 . . . . 2 . 1 . . 2 3 6 Max in Single Turn 3 | . . . 1 . . 1 . . . . . 3 2 . . . . 1 . 1 . . 1 1 1 Garrison Access 6 | . . . . . . 1 . . . . . . . . . . . . . . . . . 4 1 Machines Repaired . | . . . . . . . . . . . . . . . . . . . . . . . . . . Machines Dismantled . | . . . . . . . . . . . . . . . . . . . . . . . . . . Machines Sabotaged . | . . . . . . . . . . . . . . . . . . . . . . . . . . Overloaded Fab Kills . | . . . . . . . . . . . . . . . . . . . . . . . . . . Hacking | -11 -10 -9 -9 -9 -8 -8 -7 -7 -7 -7 -6 -6 -5 -5 -5 -5 -4 -4 -4 -4 -4 -3 -3 -2 -1 --------- Run | Yrd Mat Mat Min Exi Min Mat Fac Low Low Dat Pro Fac Fac Upp Upp Zhi Pro Fac Upp Upp War Pro Res Res Acc Machines Accessed 63 | . 6 4 . 2 . 5 10 . 1 4 . 6 6 1 . 4 . 4 . . 5 . 1 1 3 Terminals 30 | . 6 4 . . . 3 5 . . . . 4 2 1 . . . 2 . . . . 1 1 1 Fabricators 6 | . . . . . . . 4 . . . . 1 1 . . . . . . . . . . . . Repair Stations 3 | . . . . . . . . . . . . . 1 . . . . 2 . . . . . . . Recycling Units . | . . . . . . . . . . . . . . . . . . . . . . . . . . Scanalyzers 3 | . . . . . . 1 1 . . . . 1 . . . . . . . . . . . . . Garrison Access 5 | . . . . . . 1 . . . . . . 2 . . . . . . . . . . . 2 Total Hacks 170 | . 25 9 . 2 . 13 22 . 1 32 . 13 13 2 . 17 . 4 . . 11 . 1 2 3 Successful 104 | . 14 2 . 2 . 7 9 . 1 32 . 2 3 2 . 17 . . . . 11 . . 1 1 Failed 66 | . 11 7 . . . 6 13 . . . . 11 10 . . . . 4 . . . . 1 1 2 Catastrophic 12 | . 2 . . . . . 5 . . . . 1 2 . . . . 1 . . . . 1 . . Database Lockouts . | . . . . . . . . . . . . . . . . . . . . . . . . . . Manual 72 | . 17 8 . 1 . 4 16 . . . . 11 8 . . . . 2 . . 1 . 1 . 3 Terminals 75 | . 25 9 . . . 8 12 . . . . 9 4 2 . . . 2 . . . . 1 2 1 Fabricators 11 | . . . . . . . 8 . . . . 2 1 . . . . . . . . . . . . Repair Stations 7 | . . . . . . . . . . . . . 5 . . . . 2 . . . . . . . Recycling Units . | . . . . . . . . . . . . . . . . . . . . . . . . . . Scanalyzers 8 | . . . . . . 4 2 . . . . 2 . . . . . . . . . . . . . Garrison Access 6 | . . . . . . 1 . . . . . . 3 . . . . . . . . . . . 2 Terminal Hacks 80 | . 8 1 . 2 . 1 4 . 1 32 . . . 2 . 17 . . . . 11 . . 1 . Record 29 | . . . . 1 . . . . . 11 . . . 2 . 5 . . . . 10 . . . . Part Schematic 15 | . . . . . . . . . . 11 . . . . . 4 . . . . . . . . . Robot Schematic 7 | . . . . . . . . . . 7 . . . . . . . . . . . . . . . Robot Analysis 6 | . . 1 . . . . . . . . . . . . . 4 . . . . . . . 1 . Prototype ID Bank 9 | . 1 . . . . . 1 . . 3 . . . . . 4 . . . . . . . . . Open Door 2 | . . . . . . . . . 1 . . . . . . . . . . . 1 . . . . Branch Access Points 2 | . . . . . . 1 1 . . . . . . . . . . . . . . . . . . Unreport Threat 1 | . 1 . . . . . . . . . . . . . . . . . . . . . . . . Locate Traps 4 | . 4 . . . . . . . . . . . . . . . . . . . . . . . . Hauler Manifests 1 | . . . . . . . 1 . . . . . . . . . . . . . . . . . . Registered Components 2 | . 1 . . . . . 1 . . . . . . . . . . . . . . . . . . Zone Layout 1 | . 1 . . . . . . . . . . . . . . . . . . . . . . . . Proto ID Catalog 1 | . . . . 1 . . . . . . . . . . . . . . . . . . . . . Fabricator Hacks . | . . . . . . . . . . . . . . . . . . . . . . . . . . Repair Station Hacks 3 | . . . . . . . . . . . . . 3 . . . . . . . . . . . . Scan Component 2 | . . . . . . . . . . . . . 2 . . . . . . . . . . . . Repair 1 | . . . . . . . . . . . . . 1 . . . . . . . . . . . . Recycling Unit Hacks . | . . . . . . . . . . . . . . . . . . . . . . . . . . Scanalyzer 4 | . . . . . . 4 . . . . . . . . . . . . . . . . . . . Insert Component 1 | . . . . . . 1 . . . . . . . . . . . . . . . . . . . Analyze 1 | . . . . . . 1 . . . . . . . . . . . . . . . . . . . Retrieve Study 2 | . . . . . . 2 . . . . . . . . . . . . . . . . . . . Garrison Access Hacks 1 | . . . . . . 1 . . . . . . . . . . . . . . . . . . . Seal Access 1 | . . . . . . 1 . . . . . . . . . . . . . . . . . . . Unauthorized Hacks 16 | . 6 1 . . . 1 5 . . . . 2 . . . . . . . . . . . . 1 Terminals 13 | . 6 1 . . . 1 3 . . . . 2 . . . . . . . . . . . . . Botnet 13 | . 6 1 . . . 1 3 . . . . 2 . . . . . . . . . . . . . Fabricators 2 | . . . . . . . 2 . . . . . . . . . . . . . . . . . . Liberate 1 | . . . . . . . 1 . . . . . . . . . . . . . . . . . . Fabnet 1 | . . . . . . . 1 . . . . . . . . . . . . . . . . . . Repair Stations . | . . . . . . . . . . . . . . . . . . . . . . . . . . Recycling Units . | . . . . . . . . . . . . . . . . . . . . . . . . . . Scanalyzers . | . . . . . . . . . . . . . . . . . . . . . . . . . . Garrison Access 1 | . . . . . . . . . . . . . . . . . . . . . . . . . 1 Jam 1 | . . . . . . . . . . . . . . . . . . . . . . . . . 1 Data Cores Recovered 2 | . . . . . . 1 . . . . . 1 . . . . . . . . . . . . . Used 1 | . . . . . . . . . . . . 1 . . . . . . . . . . . . . Hacking Detections 43 | . 6 4 . . . 4 10 . . . . 6 5 1 . . . 4 . . . . 1 . 2 Full Trace Events 1 | . . . . . . . 1 . . . . . . . . . . . . . . . . . . Feedback Events . | . . . . . . . . . . . . . . . . . . . . . . . . . . Feedback Blocked . | . . . . . . . . . . . . . . . . . . . . . . . . . . Robot Schematics Acquired 7 | . . . . . . . . . . 7 . . . . . . . . . . . . . . . Robots Built . | . . . . . . . . . . . . . . . . . . . . . . . . . . Authchips . | . . . . . . . . . . . . . . . . . . . . . . . . . . Time . | . . . . . . . . . . . . . . . . . . . . . . . . . . Total Robot Build Rating . | . . . . . . . . . . . . . . . . . . . . . . . . . . Part Schematics Acquired 16 | . . . . . . 1 . . . 11 . . . . . 4 . . . . . . . . . Parts Built . | . . . . . . . . . . . . . . . . . . . . . . . . . . Authchips . | . . . . . . . . . . . . . . . . . . . . . . . . . . Time . | . . . . . . . . . . . . . . . . . . . . . . . . . . Total Part Build Rating . | . . . . . . . . . . . . . . . . . . . . . . . . . . Part Studies Acquired 2 | . . . . . . 2 . . . . . . . . . . . . . . . . . . . Parts Repaired 1 | . . . . . . . . . . . . . 1 . . . . . . . . . . . . Time 44 | . . . . . . . . . . . . . 44 . . . . . . . . . . . . Parts Recycled . | . . . . . . . . . . . . . . . . . . . . . . . . . . Recycled Matter . | . . . . . . . . . . . . . . . . . . . . . . . . . . Retrieved Matter . | . . . . . . . . . . . . . . . . . . . . . . . . . . Retrieved Components . | . . . . . . . . . . . . . . . . . . . . . . . . . . Parts Scanalyzed 1 | . . . . . . 1 . . . . . . . . . . . . . . . . . . . Part Schematics Acquired 1 | . . . . . . 1 . . . . . . . . . . . . . . . . . . . Parts Damaged . | . . . . . . . . . . . . . . . . . . . . . . . . . . Bothacking | -11 -10 -9 -9 -9 -8 -8 -7 -7 -7 -7 -6 -6 -5 -5 -5 -5 -4 -4 -4 -4 -4 -3 -3 -2 -1 ------------ Run | Yrd Mat Mat Min Exi Min Mat Fac Low Low Dat Pro Fac Fac Upp Upp Zhi Pro Fac Upp Upp War Pro Res Res Acc Used RIF Installer . | . . . . . . . . . . . . . . . . . . . . . . . . . . Robots Hacked . | . . . . . . . . . . . . . . . . . . . . . . . . . . Non-combat . | . . . . . . . . . . . . . . . . . . . . . . . . . . Combat . | . . . . . . . . . . . . . . . . . . . . . . . . . . Robot Hacks Applied . | . . . . . . . . . . . . . . . . . . . . . . . . . . Relay Couplers Released 4 | . . . . . . . . . . . . . . . . . . . . . . . . 4 . Machine Destruction 4 | . . . . . . . . . . . . . . . . . . . . . . . . 4 . Fabnet Peak Effective % 3 | . . . . . . . . . . . 3 3 1 1 1 1 . . . . . . . . . Robots Rewired 2 | . . . . . . . . . . . . . . . . . . . . 2 . . . . . Allies Hacked . | . . . . . . . . . . . . . . . . . . . . . . . . . . Hacks Repelled . | . . . . . . . . . . . . . . . . . . . . . . . . . . Allies | -11 -10 -9 -9 -9 -8 -8 -7 -7 -7 -7 -6 -6 -5 -5 -5 -5 -4 -4 -4 -4 -4 -3 -3 -2 -1 -------- Run | Yrd Mat Mat Min Exi Min Mat Fac Low Low Dat Pro Fac Fac Upp Upp Zhi Pro Fac Upp Upp War Pro Res Res Acc Total Allies 5 | . . . . . . . 3 . . . . . . . . . . . . 2 . . . . . Largest Group 3 | . . . . . . . 3 . . . . . . . . . . . . 2 2 . . . . Highest-Rated Group 97 | . . . . . . . 60 . . . . . . . . . . . . 97 97 . . . . Highest-Rated Ally 49 | . . . . . . . 20 . . . . . . . . . . . . 49 49 . . . . Total Orders . | . . . . . . . . . . . . . . . . . . . . . . . . . . Ally Attacks 26 | . . . . . . . 13 . . . . . . . . . . . . 3 10 . . . . Total Damage 796 | . . . . . . . 418 . . . . . . . . . . . . 106 272 . . . . Kills 6 | . . . . . . . 4 . . . . . . . . . . . . 1 1 . . . . Allies Corrupted . | . . . . . . . . . . . . . . . . . . . . . . . . . . Allies Melted 1 | . . . . . . . . . . . . . . . . . . . . . . . . 1 . Intel | -11 -10 -9 -9 -9 -8 -8 -7 -7 -7 -7 -6 -6 -5 -5 -5 -5 -4 -4 -4 -4 -4 -3 -3 -2 -1 ------- Run | Yrd Mat Mat Min Exi Min Mat Fac Low Low Dat Pro Fac Fac Upp Upp Zhi Pro Fac Upp Upp War Pro Res Res Acc Active Infowar (turns) 17980 | . 725 831 . . . 1057 1539 399 303 95 508 1091 2360 542 351 205 408 1164 541 524 795 358 1463 1674 1047 Optics 16424 | . . . . . . 1057 1539 399 303 95 508 1091 2360 542 351 205 408 1164 541 524 795 358 1463 1674 1047 Structural 1198 | . 367 831 . . . . . . . . . . . . . . . . . . . . . . . Seismic 840 | . 358 482 . . . . . . . . . . . . . . . . . . . . . . . Robot Analysis Total 6 | . . 1 . . . . . . . . . . . . . 4 . . . . . . . 1 . Derelict Logs Recovered 7 | . . . 2 . . . . . 1 . 1 . . 1 . . . . 1 1 . . . . . Drone Launches . | . . . . . . . . . . . . . . . . . . . . . . . . . . Drone Recoveries . | . . . . . . . . . . . . . . . . . . . . . . . . . . Exploration | -11 -10 -9 -9 -9 -8 -8 -7 -7 -7 -7 -6 -6 -5 -5 -5 -5 -4 -4 -4 -4 -4 -3 -3 -2 -1 ------------- Run | Yrd Mat Mat Min Exi Min Mat Fac Low Low Dat Pro Fac Fac Upp Upp Zhi Pro Fac Upp Upp War Pro Res Res Acc Turns Passed 19235 | 71 839 1061 214 413 198 1057 1539 399 303 95 508 1091 2360 542 351 205 408 1164 541 524 795 358 1463 1674 1062 Spaces Moved 11608 | 54 592 602 156 329 159 526 952 289 228 77 317 651 1348 346 221 135 259 809 408 335 552 256 749 692 566 Core 29 | 1 . . . . . . . . . . . . . . . . . . . . . . . . 28 Treads 598 | . . . . . . . . . . . . . . . . . . . . . . . . 411 187 Legs . | . . . . . . . . . . . . . . . . . . . . . . . . . . Wheels 10981 | 53 592 602 156 329 159 526 952 289 228 77 317 651 1348 346 221 135 259 809 408 335 552 256 749 281 351 Hover . | . . . . . . . . . . . . . . . . . . . . . . . . . . Flight . | . . . . . . . . . . . . . . . . . . . . . . . . . . Fastest Speed 50 | 50 80 116 125 125 125 115 115 125 125 125 125 120 115 145 145 145 145 120 125 125 120 120 107 115 50 Average Speed 130 | 79 115 120 125 125 125 121 122 125 125 125 129 138 127 145 145 145 145 123 125 134 134 121 124 188 128 Slowest Speed 270 | 80 140 175 125 125 125 140 235 125 125 125 205 205 145 145 145 145 145 145 125 135 135 145 235 270 150 Overloaded Moves . | . . . . . . . . . . . . . . . . . . . . . . . . . . Propulsion Burnouts . | . . . . . . . . . . . . . . . . . . . . . . . . . . Robots Hopped . | . . . . . . . . . . . . . . . . . . . . . . . . . . Potential Cave-ins . | . . . . . . . . . . . . . . . . . . . . . . . . . . Cave-ins Triggered . | . . . . . . . . . . . . . . . . . . . . . . . . . . Teleports 1 | . . . . . . . . . . . . . . . . . . . . . . . . . 1 Exploration Rate (%) 48 | 3 87 51 52 70 52 44 24 53 45 72 59 24 43 52 49 61 53 29 67 52 90 55 21 32 29 Regions Visited 25 Branch Regions 15 Pre-discovered Areas 8 | . . . . 1 . . . . . 1 . . . . . 3 . . . 1 2 . . . . Known Exits Taken 7 | . . . . . . 1 1 . . . . 1 . . . . . 1 1 . . 1 . 1 . Unknown Exits Taken 18 | 1 1 1 1 1 1 . . 1 1 1 1 . 1 1 1 1 1 . . 1 1 . 1 . . Scrap Searched 15 | . . . 1 . 1 . . . 1 . 3 . . 1 . . 1 . 2 4 . 1 . . . Spaces Dug 30 | . . . . . . 4 . . . . . 1 2 . . . . 5 . . . . 11 . 7 Terrain Destroyed 1071 | . . . 14 . . 4 12 51 34 . 105 28 109 129 2 . 1 21 2 15 10 6 113 242 173 Melee . | . . . . . . . . . . . . . . . . . . . . . . . . . . Projectile 293 | . . . . . . 4 12 1 3 . 2 9 53 19 2 . 1 21 2 15 10 6 53 32 48 AOE 778 | . . . 14 . . . . 50 31 . 103 19 56 110 . . . . . . . . 60 210 125 Terrain Rammed . | . . . . . . . . . . . . . . . . . . . . . . . . . . Walls Destroyed . | . . . . . . . . . . . . . . . . . . . . . . . . . . Machines Disabled . | . . . . . . . . . . . . . . . . . . . . . . . . . . Actions | -11 -10 -9 -9 -9 -8 -8 -7 -7 -7 -7 -6 -6 -5 -5 -5 -5 -4 -4 -4 -4 -4 -3 -3 -2 -1 --------- Run | Yrd Mat Mat Min Exi Min Mat Fac Low Low Dat Pro Fac Fac Upp Upp Zhi Pro Fac Upp Upp War Pro Res Res Acc Total 14337 | 68 673 790 166 332 158 788 1219 312 241 76 396 786 1786 362 234 144 276 985 439 410 604 285 1138 906 763 Wait 1038 | . 11 59 1 . . 125 93 . 1 . 40 49 193 1 3 . 1 76 1 13 8 4 223 50 86 Move 11583 | 53 591 601 155 328 158 525 951 288 227 76 316 650 1347 345 220 134 258 808 407 334 551 255 748 691 566 Hop . | . . . . . . . . . . . . . . . . . . . . . . . . . . Pick Up 232 | 3 17 17 2 2 . 18 25 3 3 . 7 17 35 2 1 1 . 18 1 4 1 1 19 24 11 Fast Attach 90 | 6 2 1 . . . 8 9 . . . 2 3 18 . . 4 . 3 . . 10 2 8 11 3 Attach 138 | . . 13 1 . . 7 10 4 3 . 10 10 19 . 1 1 . 5 . 3 . 1 18 13 19 Detach 38 | . 1 1 . . . 4 6 1 . . 1 3 4 . . 1 . 2 . 1 1 . 2 2 8 Swap 112 | . 3 8 2 . . 6 12 . . . . 5 29 4 . . . 9 . . 4 1 6 22 1 Drop 207 | . 6 9 1 2 . 18 32 2 3 . 7 10 38 1 1 3 . 19 1 1 8 3 9 25 8 Fire 832 | 6 42 80 4 . . 77 81 13 4 . 13 39 95 9 8 . 7 44 19 18 21 18 105 68 61 Melee . | . . . . . . . . . . . . . . . . . . . . . . . . . . Ram 1 | . . 1 . . . . . . . . . . . . . . . . . . . . . . . Kick . | . . . . . . . . . . . . . . . . . . . . . . . . . . Crush . | . . . . . . . . . . . . . . . . . . . . . . . . . . Escape Stasis 8 | . . . . . . . . . . . . . 8 . . . . . . . . . . . . Rewire 37 | . . . . . . . . 1 . . . . . . . . . . . 36 . . . . . Trap 21 | . . . . . . . . . . . . . . . . . 10 1 10 . . . . . . Miscellaneous . | . . . . . . . . . . . . . . . . . . . . . . . . . . Route ------- -11/Scrapyard -10/Materials (discovered 6 exits: *Mat x3 / [*Min x2] / [*Sub]) -9/Materials (discovered 2 exits: *Mat / [*Min]) -9/Mines -9/Exiles (discovered 2 exits: [*Min x2]) -8/Mines -8/Materials -7/Factory (discovered 3 exits: Sto / *Low x2) -7/Lower Caves -7/Lower Caves -7/Data Miner -6/Proximity Caves -6/Factory -5/Factory -5/Upper Caves -5/Upper Caves -5/Zhirov -4/Proximity Caves -4/Factory (discovered 2 exits: *Res / *Upp) -4/Upper Caves -4/Upper Caves -4/Warlord -3/Proximity Caves -3/Research (discovered 2 exits: *Res / *Tes) -2/Research (discovered 3 exits: *Acc / *Qua x2) -1/Access History --------- Turn | Location | Event 10 | -11/Scrapyard | Discovered new exit (range 15) 72 | -11/Scrapyard | Entered Materials 92 | -10/Materials | Discovered new exit (range 15) 200 | -10/Materials | Discovered new exit (range 7) 302 | -10/Materials | Build established: Mutant 488 | -10/Materials | Discovered new exit (range 14) 580 | -10/Materials | Discovered new exit (range 11) 855 | -10/Materials | Discovered new exit (range 10) 876 | -10/Materials | Discovered new exit (range 14) 911 | -10/Materials | Entered another Materials area 911 | -9/Materials | Evolved 2 slots: Propulsion x1, Utility x1 1197 | -9/Materials | Discovered new exit (range 4) 1337 | -9/Materials | Discovered new exit (range 13) 1419 | -9/Materials | Core integrity fell below 50% 1434 | -9/Materials | Lost 3 parts (1p1n1w) 1554 | -9/Materials | Lost 5 parts (2n2u1w) 1763 | -9/Materials | Build established: Scavenger-Mutant 1855 | -9/Materials | Core integrity fell below 20% 1972 | -9/Materials | Entered Mines 1992 | -9/Mines | Found a damaged Exp. Sensor Array with a note attached 1995 | -9/Mines | Found Prototype Device 2083 | -9/Mines | A weapon hastily lodged in a ceiling crevice suddenly fell to the ground 2163 | -9/Mines | Learned location of 1 exit from Materials 2181 | -9/Mines | Deemed a non-threat by the Exiles lab entrance 2181 | -9/Mines | Discovered new exit (range 5) 2186 | -9/Mines | Entered Exiles 2205 | -9/Exiles | Discovered new exit (range 15) 2218 | -9/Exiles | Met 8R-AWN 2236 | -9/Exiles | Met EX-HEX 2288 | -9/Exiles | Met EX-DEC 2293 | -9/Exiles | Learned location of Zion (-6) 2313 | -9/Exiles | Met EX-BIN 2330 | -9/Exiles | Aligned with FarCom system 2331 | -9/Exiles | Given EX-Vault access code 2362 | -9/Exiles | Opened EX-Vault 2371 | -9/Exiles | Found XL Autogun Array 2398 | -9/Exiles | Warned to stay clear of 0b10 Research branches 2588 | -9/Exiles | Discovered new exit (range 10) 2599 | -9/Exiles | Left Exiles lab with XL Autogun Array 2599 | -9/Exiles | Entered Mines 2786 | -8/Mines | Discovered new exit (range 11) 2797 | -8/Mines | Entered Materials 2797 | -8/Materials | Evolved 2 slots: Utility x2 2798 | -8/Materials | Identified exit to Factory 3445 | -8/Materials | Lost 5 parts (3n2w) 3854 | -8/Materials | Entered Factory 3854 | -7/Factory | Evolved 2 slots: Utility x2 3855 | -7/Factory | Identified exit to Storage 4307 | -7/Factory | P-60 Hacker assimilated allied B-48 Gladiator 4418 | -7/Factory | Build established: Mutant 4450 | -7/Factory | Identified exit to Lower Caves 4919 | -7/Factory | Lost 4 parts (2n1u1w) 4938 | -7/Factory | Found Prototype Launcher 4938 | -7/Factory | Identified Rocket Array 5393 | -7/Factory | Entered Lower Caves 5433 | -7/Lower Caves | Destroyed 7 combat bots 5554 | -7/Lower Caves | Encountered a Warlord checkpoint 5743 | -7/Lower Caves | Discovered new exit (range 8) 5792 | -7/Lower Caves | Entered another Lower Caves area 5857 | -7/Lower Caves | Attracted the attention of an 0b10 checkpoint 6012 | -7/Lower Caves | Learned 4 Factory zone layouts 6087 | -7/Lower Caves | Discovered new exit (range 7) 6095 | -7/Lower Caves | Entered Data Miner 6095 | -7/Data Miner | Discovered new exit (range 6) 6114 | -7/Data Miner | Met Data Miner 6142 | -7/Data Miner | Learned location of Section 7 (-2) 6142 | -7/Data Miner | Acquired the access code to Warlord's prototype stash 6162 | -7/Data Miner | Received God Mode back door access code from Data Miner 6190 | -7/Data Miner | Entered Proximity Caves 6330 | -6/Proximity Caves | Learned Factory terminal intel 6641 | -6/Proximity Caves | Discovered new exit (range 13) 6660 | -6/Proximity Caves | Attracted the attention of an 0b10 checkpoint 6698 | -6/Proximity Caves | Entered Factory 6698 | -6/Factory | Evolved 2 slots: Propulsion x1, Utility x1 6699 | -6/Factory | Identified exit to Factory 6700 | -6/Factory | Loaded intel: 26 terminal locations 7789 | -6/Factory | Entered another Factory area 7789 | -5/Factory | Evolved 2 slots: Utility x1, Weapon x1 8013 | -5/Factory | Repaired Imp. Medium Armor Plating 8091 | -5/Factory | Build established: Gunner 8519 | -5/Factory | Cargo convoy interrupted 8547 | -5/Factory | Lost 3 parts (1u2w) 8821 | -5/Factory | Build established: Scavenger-Gunner 9889 | -5/Factory | First assault squad dispatched 9897 | -5/Factory | Build established: Gunner 10017 | -5/Factory | Discovered new exit (range 19) 10090 | -5/Factory | Lost 4 parts (2n2w) 10149 | -5/Factory | Entered Upper Caves 10151 | -5/Upper Caves | Attracted the attention of an 0b10 checkpoint 10477 | -5/Upper Caves | Learned Factory non-interactive machine intel 10687 | -5/Upper Caves | Discovered new exit (range 2) 10691 | -5/Upper Caves | Entered another Upper Caves area 11036 | -5/Upper Caves | Discovered new exit (range 6) 11042 | -5/Upper Caves | Entered Zhirov 11042 | -5/Zhirov | Discovered new exit (range 3) 11044 | -5/Zhirov | Build established: Scavenger-Gunner 11069 | -5/Zhirov | Met Zhirov 11100 | -5/Zhirov | Learned location of Quarantine (-2) 11100 | -5/Zhirov | Learned location of Testing (-3) 11100 | -5/Zhirov | Learned location of Command (-1) 11109 | -5/Zhirov | Zhirov requested help retrieving the SGEMP Prototype 11142 | -5/Zhirov | Found Alien Artifact 11142 | -5/Zhirov | Identified Integrated Dissipator 11142 | -5/Zhirov | Installed Integrated Dissipator, increased core heat dissipation (+20) 11160 | -5/Zhirov | Found Alien Artifact 11247 | -5/Zhirov | Entered Proximity Caves 11616 | -4/Proximity Caves | Attracted the attention of an 0b10 checkpoint 11626 | -4/Proximity Caves | Discovered new exit (range 21) 11655 | -4/Proximity Caves | Entered Factory 11655 | -4/Factory | Evolved 2 slots: Utility x1, Weapon x1 11656 | -4/Factory | Loaded intel: 271 non-interactive machine locations 12465 | -4/Factory | Discovered new exit (range 20) 12497 | -4/Factory | Identified exit to Research 12552 | -4/Factory | Build established: Gunner 12781 | -4/Factory | Discovered new exit (range 8) 12817 | -4/Factory | Identified exit to Upper Caves 12819 | -4/Factory | Entered Upper Caves 12862 | -4/Upper Caves | Attracted the attention of an 0b10 checkpoint 13355 | -4/Upper Caves | Discovered new exit (range 5) 13358 | -4/Upper Caves | Identified exit to Upper Caves 13360 | -4/Upper Caves | Entered another Upper Caves area 13389 | -4/Upper Caves | Attracted the attention of an 0b10 outpost 13436 | -4/Upper Caves | Destroyed 9 combat bots 13671 | -4/Upper Caves | Learned location of Armory (-3) 13765 | -4/Upper Caves | Attracted the attention of an 0b10 checkpoint 13868 | -4/Upper Caves | Discovered new exit (range 9) 13884 | -4/Upper Caves | Entered Warlord 13884 | -4/Warlord | Accompanied by 2 allies 13929 | -4/Warlord | System corruption cleaned by Quarantine Array 14197 | -4/Warlord | Opened Warlord's prototype stash 14202 | -4/Warlord | Found Prototype Device 14202 | -4/Warlord | Identified Thermal Barrier 14205 | -4/Warlord | Found Prototype Processor 14205 | -4/Warlord | Identified Exp. Core Analyzer 14230 | -4/Warlord | Learned Armory security intel 14230 | -4/Warlord | Learned Quarantine security intel 14230 | -4/Warlord | Learned Research fabricator intel 14230 | -4/Warlord | Learned 4 Access zone layouts 14230 | -4/Warlord | Learned 4 Quarantine zone layouts 14238 | -4/Warlord | Met Warlord 14263 | -4/Warlord | Warlord's base attacked by MAIN.C 14538 | -4/Warlord | Spotted B-90 Cyclops 14583 | -4/Warlord | Warlord forces counterattacked 14586 | -4/Warlord | Spotted Striker 14588 | -4/Warlord | Destroyed Striker 14599 | -4/Warlord | Spotted Striker 14601 | -4/Warlord | Spotted Executioner 14602 | -4/Warlord | Destroyed Striker 14605 | -4/Warlord | Destroyed Executioner 14629 | -4/Warlord | Destroyed 8 combat bots 14645 | -4/Warlord | Lost 3 allies 14661 | -4/Warlord | Discovered new exit (range 14) 14664 | -4/Warlord | Spotted Executioner 14679 | -4/Warlord | Entered Proximity Caves 14708 | -3/Proximity Caves | Lost 6 allies 14822 | -3/Proximity Caves | Spotter reported a threat 14851 | -3/Proximity Caves | Build established: Scavenger-Gunner 14923 | -3/Proximity Caves | Attracted the attention of an 0b10 checkpoint 14957 | -3/Proximity Caves | Spotted B-86 Titan 14968 | -3/Proximity Caves | Spotter reported a threat 15030 | -3/Proximity Caves | Discovered exit to Research (range 6) 15037 | -3/Proximity Caves | Entered Research 15037 | -3/Research | Evolved 2 slots: Propulsion x1, Utility x1 15038 | -3/Research | Identified exit to Testing 15039 | -3/Research | Loaded intel: 3 fabricator locations 15287 | -3/Research | Search patrols dispatched 15464 | -3/Research | Spotted B-86 Titan 16106 | -3/Research | Lost 3 parts (1p2n) 16287 | -3/Research | First assault squad dispatched 16310 | -3/Research | Incoming assault squad redirected 16343 | -3/Research | Lost 4 parts (2n2u) 16385 | -3/Research | Discovered new exit (range 23) 16458 | -3/Research | Lost 9 parts (6n3w) 16500 | -3/Research | Entered another Research area 16500 | -2/Research | Warlord forces began assault on 0b10 16500 | -2/Research | Evolved 2 slots: Utility x2 16501 | -2/Research | Identified exit to Access 16610 | -2/Research | Research machine network offline 16750 | -2/Research | Spotted Executioner 16751 | -2/Research | Spotted Executioner 16754 | -2/Research | Destroyed Executioner 16777 | -2/Research | Destroyed Executioner 16798 | -2/Research | Destroyed 7 combat bots 16800 | -2/Research | Lost 5 parts (4u1w) 16917 | -2/Research | Borebot progress halted 16921 | -2/Research | Spotted Striker 16923 | -2/Research | Met up with Warlord 16962 | -2/Research | Spotted B-90 Cyclops 16968 | -2/Research | Spotted Striker 16970 | -2/Research | Spotted Striker 16972 | -2/Research | Destroyed KC-KA2(D) 16978 | -2/Research | Destroyed Striker 17003 | -2/Research | Lost 8 allies 17019 | -2/Research | Found Fusion Bomb Launcher 17022 | -2/Research | Found Fusion Bomb Launcher 17027 | -2/Research | Spotted Executioner 17030 | -2/Research | Spotted Striker 17177 | -2/Research | Spotted B-90 Cyclops 17238 | -2/Research | Borebot progress halted 17283 | -2/Research | Spotted Striker 17283 | -2/Research | Borebot progress halted 17382 | -2/Research | Discovered new exit (range 11) 17530 | -2/Research | Spotted Executioner 17531 | -2/Research | Destroyed Executioner 17536 | -2/Research | Spotted Striker 17571 | -2/Research | Discovered new exit (range 14) 17583 | -2/Research | Found Exp. Core Analyzer 17638 | -2/Research | Lost 3 allies 17651 | -2/Research | Spotted Striker 17665 | -2/Research | Destroyed Striker 17683 | -2/Research | Spotted Striker 17861 | -2/Research | Identified exit to Quarantine 18003 | -2/Research | Given Cave Seal Controls access code 18032 | -2/Research | Spotted Executioner 18033 | -2/Research | Spotted Striker 18033 | -2/Research | Destroyed Striker 18040 | -2/Research | Destroyed Executioner 18101 | -2/Research | Spotted Striker 18101 | -2/Research | Spotted Executioner 18101 | -2/Research | Spotted Executioner 18116 | -2/Research | Spotted Striker 18118 | -2/Research | Destroyed Striker 18118 | -2/Research | Destroyed Executioner 18119 | -2/Research | Spotted Striker 18121 | -2/Research | Destroyed Executioner 18143 | -2/Research | Destroyed Striker 18144 | -2/Research | Lost 4 parts (2u2w) 18164 | -2/Research | Destroyed 14 combat bots 18174 | -2/Research | Entered Access 18174 | -1/Access | Evolved 2 slots: Power x1, Propulsion x1 18360 | -1/Access | Found Hvy. Reflective Plating 18424 | -1/Access | First assault squad dispatched 18804 | -1/Access | Lost 3 parts (3u) 18812 | -1/Access | Destroyed 7 combat bots 18840 | -1/Access | Identified Transdimensional Reconstructor 18840 | -1/Access | Warped through subspace 18847 | -1/Access | Spotted B-99 Colossus 18855 | -1/Access | Incoming assault squad redirected 18952 | -1/Access | High security lockdown imminent 18982 | -1/Access | Found Fusion Bomb Launcher 19032 | -1/Access | High security lockdown engaged 19150 | -1/Access | Spotted B-99 Colossus 19161 | -1/Access | Spotted B-99 Colossus 19177 | -1/Access | Destroyed 9 combat bots 19227 | -1/Access | Core integrity fell below 50% 19234 | -1/Access | Core integrity fell below 20% 19236 | -1/Access | Destroyed by B-99 Colossus with Linear Accelerator Last Messages --------------- 19226_ Slug penetrates S-43 Plague. 19226_ S-43 Plague destroyed. 19226_ Penetrated by Slug. 19226_ Slug penetrates Sealed Heavy Doors. 19226_ Wheel+ destroyed. 19226_ Slug penetrates Earth. 19226_ Penetrated by Slug. 19229_ Knocked back. 19229_ Slug penetrates Sealed Heavy Doors. 19229_ Penetrated by Slug. 19229_ Slug penetrates Sealed Heavy Doors. 19229_ Penetrated by Slug. 19233_ Slug penetrates Sealed Heavy Doors. 19233_ Penetrated by Slug. 19233_ Slug penetrates Sealed Heavy Doors. 19233_ Penetrated by Slug. 19234_ Acquired 1 matter. 19236_ Penetrated by Slug. 19236_ Slug penetrates Sealed Heavy Doors. [Achievement: Punisher] Map ----- +----------------------------------------------------+ | ?????????????????????????????????????????????????? | | ?????????????????????????????????????????????????? | | ?????????????????????????????????????????????????? | | ?????????????????????????????????????????????????? | | ?????????????????????????????????????????????????? | | ?????????????????????????????????????????######### | | ?????????????????????????????????????????# | | ?????????????????????????????????????????# ! | | ?????????????????????????????????????????# | | ?????????????????????????????????????????# | | ?????????????????????????????????????????# ! | | ?????????????????????????????????????????# | | ?????????????????????????????????????????# | | ?????????????????????????????????????????# """" | | ?????????????????????????????????????????# """" | | ?????????????????????????????????""??????# """" | | ?????????????????????????????????" ?????# """" | | ?????????????????????????????? "" ????# """ | | ??????????????????????????????? ???####### | | ??????????????????????????????? ###??# | | ????????????????????????????????# ### #### | | ????????????????????????????????? ?# | | ???????????????????????????######### ## ## | | ???????????????????????????" # ## #C#" " | | ????????????????????????""""% ##### ## " " | | ????????????????????????"@%%%% ### " " | | ## ???????????"""" %B " | | ## ??????????????" [ B " | | ## ??????????????" %BB + | | ## ??????????????" l =BBg * # | | ## ??????????????" ## #g ! ! # | | ## ??????????????" # " = # | | ## ??????????????" # ### " | | ## ######??????????????################?# # | | ##### #????????????????????????????????????# # | | ##### #????????????????????????????????????# # | | # #????????????????????????????????????# # | | # #????????????????????????????????????# # | | " + #????????????????????????????????????# # | | "" # ######???????????????????????????????# # | | " # ???????????????????????????????+ # | | # ???????????????????????????????# # | | # #### ???????????????????????????????# # | | # #??# ???????????????????????????????# # | | ##### #??# ???????????????????????????????# | | #???# #??# ???????????????????????????????# | | ##### #??# ???????????????????????????????# | | #??# ???????????????????????????????# # | | #?## ???????????????????????????????# # | | #?# ???????????????????????????????# # | +----------------------------------------------------+ Best States ------------- Heat Dissipation 99 Energy Generation 36 Energy Capacity 540 Matter Stores 300 Matter Capacity 300 Sight Range 23 Terrain Scan Density 10 Power Amplification 30 Armor Coverage 1500 Resistance: TH 25 Resistance: EM 20 Weapon Cycling 15 Phase Shifting 15 Evasion (%) 55 Targeting Accuracy 32 Core Analysis 12 Armor Integrity Analysis 40 Recoil Reduction 10 Kinecelleration 40 Item Schematics ----------------- Wheel | -8/Materials | Scanalyzed Combat Drone Bay | -7/Data Miner | Free Lgt. Regenerative Plating | -7/Data Miner | Free Cld. Aerolev Unit | -7/Data Miner | Free Gravity Neutralizer | -7/Data Miner | Free Cld. Plasma Cannon | -7/Data Miner | Free Arm. Medium Treads | -7/Data Miner | Free Adv. Shield Generator | -7/Data Miner | Free Wave Gun | -7/Data Miner | Free Nuclear Pulse Array | -7/Data Miner | Free Adv. Cryofiber Web | -7/Data Miner | Free Hvy. Siege Treads | -7/Data Miner | Free Assault Drone Bay | -5/Zhirov | Free Exp. Heat Sink | -5/Zhirov | Free Exp. Optical Array | -5/Zhirov | Free Imp. Arc Thrower | -5/Zhirov | Free Robot Schematics ------------------ L-41 Fighter | -7/Data Miner | Free I-36 Angel | -7/Data Miner | Free O-24 Administrator | -7/Data Miner | Free S-27 Virus | -7/Data Miner | Free E-15 Imp | -7/Data Miner | Free M-22 Extractor | -7/Data Miner | Free X-67 Chaingunner | -7/Data Miner | Free Fabricated ------------ Nothing Repaired ---------- Imp. Medium Armor Plating | 52% | -5/Factory Studied --------- Wheel | -8/Materials | Hacked Autogun | -8/Materials | Hacked Alien Tech Used ----------------- Integrated Dissipator Transdimensional Reconstructor Achievements -------------- Punisher Challenges ------------ None Game ------ Seed PropulsionJunkRecalibrator Manual? 0 Play Time 03:49:57 Cumulative 218.9 hours Start 2026.07.28 @ 16:04:56 End 2026.07.28 @ 22:54:16 Sessions 3 Manual Loads 0 Difficulty Rogue Special Mode None Game No. 274 Rogue 274 Adventurer 0 Explorer 0 Win Type - Total 6 Types 6/0/0/0/0/0/0/0/0/0 Lore% 80 Gallery% 62 Achievement% 51 Wizard Run 0 Options --------- Layout 0 ASCII 0 Keyboard 0 Movement Numpad Keybinds 0 Fullscreen 1 Font 18/Terminus Map View 76x50 Zoom Use 0% Tactical HUD 1 Map Filters NONE Filters NONE Steam 1 RUN: e4cb941d-a619-4074-9f05-a828d4747c3a